[Event "*** Titled Tuesday Blitz"]
[Site "Chess.com"]
[Date "2020.05.12"]
[Round "3"]
[White "Haykoooo0o"]
[Black "freshfoodcompany"]
[Result "1/2-1/2"]
[WhiteElo "2472"]
[BlackElo "2255"]
[TimeControl "180+1"]
[EndTime "10:29:26 PDT"]
[Termination "Game drawn - insufficient material"]

1. d4 {[%clk 0:02:54.3]} 1... d5 {[%clk 0:02:59.8]} 2. c4 {[%clk 0:02:53.7]}
2... e6 {[%clk 0:03:00.2]} 3. Nf3 {[%clk 0:02:53.3]} 3... Nf6 {[%clk 0:02:59.5]}
4. g3 {[%clk 0:02:53.7]} 4... dxc4 {[%clk 0:02:59.2]} 5. Bg2 {[%clk 0:02:54.1]}
5... Bd7 {[%clk 0:02:59.4]} 6. O-O {[%clk 0:02:54.5]} 6... Bc6 {[%clk
0:02:59.3]} 7. Nc3 {[%clk 0:02:53.9]} 7... Nbd7 {[%clk 0:02:57.6]} 8. Qc2 {[%clk
0:02:54]} 8... Bb4 {[%clk 0:02:55.9]} 9. Re1 {[%clk 0:02:53.2]} 9... O-O {[%clk
0:02:51.6]} 10. e4 {[%clk 0:02:52.4]} 10... Nb6 {[%clk 0:02:43.8]} 11. Bg5
{[%clk 0:02:49.8]} 11... h6 {[%clk 0:02:39.3]} 12. Bf4 {[%clk 0:02:49.6]} 12...
Bxc3 {[%clk 0:02:30.4]} 13. bxc3 {[%clk 0:02:49.1]} 13... Ba4 {[%clk 0:02:14.6]}
14. Qb2 {[%clk 0:02:47.6]} 14... Bc6 {[%clk 0:02:12.4]} 15. Ne5 {[%clk
0:02:45.8]} 15... Be8 {[%clk 0:01:56.5]} 16. Rad1 {[%clk 0:02:45]} 16... Qe7
{[%clk 0:01:53.5]} 17. h4 {[%clk 0:02:38.1]} 17... Ba4 {[%clk 0:01:51.2]} 18.
Rd2 {[%clk 0:02:37.5]} 18... Nfd7 {[%clk 0:01:47.7]} 19. h5 {[%clk 0:02:33.3]}
19... Nxe5 {[%clk 0:01:44.9]} 20. Bxe5 {[%clk 0:02:34.2]} 20... f6 {[%clk
0:01:41.7]} 21. Bf4 {[%clk 0:02:33.5]} 21... Rad8 {[%clk 0:01:34.5]} 22. e5
{[%clk 0:02:32.8]} 22... f5 {[%clk 0:01:24.4]} 23. Bxb7 {[%clk 0:02:32.3]} 23...
c6 {[%clk 0:01:13.1]} 24. Ba6 {[%clk 0:02:27.4]} 24... Nd5 {[%clk 0:01:11.5]}
25. Qb7 {[%clk 0:02:18.1]} 25... Rd7 {[%clk 0:01:07.7]} 26. Qb2 {[%clk
0:02:17.4]} 26... Nxf4 {[%clk 0:01:03]} 27. gxf4 {[%clk 0:02:17.9]} 27... Qh4
{[%clk 0:00:58.8]} 28. Bxc4 {[%clk 0:02:16.9]} 28... Qg4+ {[%clk 0:00:55.7]} 29.
Kf1 {[%clk 0:02:09.2]} 29... Qh3+ {[%clk 0:00:55.5]} 30. Ke2 {[%clk 0:02:07.6]}
30... Qxh5+ {[%clk 0:00:52]} 31. Ke3 {[%clk 0:02:07.7]} 31... Re8 {[%clk
0:00:35.3]} 32. Rg1 {[%clk 0:02:07.4]} 32... Qh3+ {[%clk 0:00:32.6]} 33. Rg3
{[%clk 0:02:07.2]} 33... Qh1 {[%clk 0:00:30]} 34. Bb3 {[%clk 0:02:03.7]} 34...
Bxb3 {[%clk 0:00:27.9]} 35. axb3 {[%clk 0:02:03.5]} 35... c5 {[%clk 0:00:27.3]}
36. Qc2 {[%clk 0:01:59]} 36... Rc8 {[%clk 0:00:25.2]} 37. d5 {[%clk 0:01:43.5]}
37... Rxd5 {[%clk 0:00:19.4]} 38. Rxd5 {[%clk 0:01:42.9]} 38... Qxd5 {[%clk
0:00:18.2]} 39. Rg1 {[%clk 0:01:41.3]} 39... Rd8 {[%clk 0:00:17.5]} 40. Ke2
{[%clk 0:01:41.1]} 40... c4 {[%clk 0:00:14.7]} 41. b4 {[%clk 0:01:40.3]} 41...
Qd3+ {[%clk 0:00:14.7]} 42. Qxd3 {[%clk 0:01:40.5]} 42... Rxd3 {[%clk
0:00:14.7]} 43. Ra1 {[%clk 0:01:39.8]} 43... Rxc3 {[%clk 0:00:13.7]} 44. Rxa7
{[%clk 0:01:39.4]} 44... Rb3 {[%clk 0:00:14]} 45. Rb7 {[%clk 0:01:36.7]} 45...
Rb2+ {[%clk 0:00:13.1]} 46. Ke3 {[%clk 0:01:35.3]} 46... Kh7 {[%clk 0:00:12.9]}
47. b5 {[%clk 0:01:34.2]} 47... c3 {[%clk 0:00:12.7]} 48. Rc7 {[%clk 0:01:30.9]}
48... Rxb5 {[%clk 0:00:12]} 49. Rxc3 {[%clk 0:01:31.1]} 49... Rd5 {[%clk
0:00:12.2]} 50. Kf3 {[%clk 0:01:31]} 50... Rd7 {[%clk 0:00:12.1]} 51. Rc6 {[%clk
0:01:30.6]} 51... Re7 {[%clk 0:00:12.4]} 52. Kg3 {[%clk 0:01:30.9]} 52... Kg6
{[%clk 0:00:12.7]} 53. Rc8 {[%clk 0:01:30.3]} 53... Kf7 {[%clk 0:00:12.8]} 54.
Rc6 {[%clk 0:01:28.8]} 54... g6 {[%clk 0:00:13.1]} 55. f3 {[%clk 0:01:28.1]}
55... g5 {[%clk 0:00:13.1]} 56. fxg5 {[%clk 0:01:27.4]} 56... hxg5 {[%clk
0:00:13.1]} 57. f4 {[%clk 0:01:28.3]} 57... gxf4+ {[%clk 0:00:12.5]} 58. Kxf4
{[%clk 0:01:29.2]} 58... Rd7 {[%clk 0:00:13]} 59. Kg5 {[%clk 0:01:28.7]} 59...
Ra7 {[%clk 0:00:12.2]} 60. Rb6 {[%clk 0:01:28.4]} 60... Re7 {[%clk 0:00:11.6]}
61. Rb8 {[%clk 0:01:28.3]} 61... Kg7 {[%clk 0:00:11.3]} 62. Rb6 {[%clk
0:01:27.1]} 62... Kf7 {[%clk 0:00:10.3]} 63. Rb8 {[%clk 0:01:25.8]} 63... Rd7
{[%clk 0:00:10.5]} 64. Rh8 {[%clk 0:01:25]} 64... Kg7 {[%clk 0:00:10.1]} 65. Rh6
{[%clk 0:01:24.9]} 65... Re7 {[%clk 0:00:09.3]} 66. Rg6+ {[%clk 0:01:21.9]}
66... Kh7 {[%clk 0:00:09.7]} 67. Kf6 {[%clk 0:01:21.2]} 67... Re8 {[%clk
0:00:09.2]} 68. Rg2 {[%clk 0:01:19.2]} 68... Rf8+ {[%clk 0:00:09.5]} 69. Kxe6
{[%clk 0:01:18.8]} 69... f4 {[%clk 0:00:09.9]} 70. Ke7 {[%clk 0:01:19.1]} 70...
f3 {[%clk 0:00:10.3]} 71. Rh2+ {[%clk 0:01:19.3]} 71... Kg7 {[%clk 0:00:08.7]}
72. Rf2 {[%clk 0:01:18.9]} 72... Rf4 {[%clk 0:00:08]} 73. e6 {[%clk 0:01:19]}
73... Kg6 {[%clk 0:00:08.4]} 74. Kd7 {[%clk 0:01:14.7]} 74... Kg5 {[%clk
0:00:08.6]} 75. e7 {[%clk 0:01:13.3]} 75... Rd4+ {[%clk 0:00:08.7]} 76. Ke6
{[%clk 0:01:03.8]} 76... Re4+ {[%clk 0:00:08.8]} 77. Kf7 {[%clk 0:01:04.2]}
77... Kf4 {[%clk 0:00:08.7]} 78. Ra2 {[%clk 0:00:59.4]} 78... Kg3 {[%clk
0:00:08]} 79. Ra3 {[%clk 0:00:58.6]} 79... Kg2 {[%clk 0:00:07.5]} 80. Ra4 {[%clk
0:00:55.9]} 80... Rxe7+ {[%clk 0:00:07.4]} 81. Kxe7 {[%clk 0:00:56.3]} 81... f2
{[%clk 0:00:06.8]} 82. Rf4 {[%clk 0:00:56.7]} 82... f1=Q {[%clk 0:00:06.3]} 83.
Rxf1 {[%clk 0:00:57.6]} 83... Kxf1 {[%clk 0:00:06.6]} 1/2-1/2

[Event "*** Titled Tuesday Blitz"]
[Site "Chess.com"]
[Date "2020.05.12"]
[Round "3"]
[White "AquivaRubinstein"]
[Black "scabies1"]
[Result "1/2-1/2"]
[WhiteElo "2419"]
[BlackElo "2193"]
[TimeControl "180+1"]
[EndTime "10:29:27 PDT"]
[Termination "Game drawn by repetition"]

1. e4 {[%clk 0:03:00.9]} 1... c6 {[%clk 0:02:53.6]} 2. Nc3 {[%clk 0:02:59.6]}
2... d5 {[%clk 0:02:53.9]} 3. Nf3 {[%clk 0:02:59.8]} 3... Bg4 {[%clk 0:02:52.9]}
4. h3 {[%clk 0:03:00]} 4... Bxf3 {[%clk 0:02:53.2]} 5. Qxf3 {[%clk 0:03:00.2]}
5... e6 {[%clk 0:02:52.1]} 6. d4 {[%clk 0:02:59.7]} 6... dxe4 {[%clk 0:02:41.9]}
7. Qxe4 {[%clk 0:02:59.9]} 7... Nf6 {[%clk 0:02:41]} 8. Qd3 {[%clk 0:03:00]}
8... Be7 {[%clk 0:02:35.8]} 9. g3 {[%clk 0:02:59.9]} 9... O-O {[%clk 0:02:35.3]}
10. Bg2 {[%clk 0:03:00]} 10... Nbd7 {[%clk 0:02:30.8]} 11. O-O {[%clk
0:02:59.8]} 11... Rc8 {[%clk 0:02:12.6]} 12. a4 {[%clk 0:02:54.7]} 12... a5
{[%clk 0:02:03.3]} 13. Bd2 {[%clk 0:02:39.4]} 13... b6 {[%clk 0:01:58.4]} 14.
Rfe1 {[%clk 0:02:28.1]} 14... Nd5 {[%clk 0:01:56.7]} 15. Ne4 {[%clk 0:02:14.4]}
15... c5 {[%clk 0:01:52.1]} 16. dxc5 {[%clk 0:02:09.1]} 16... Nxc5 {[%clk
0:01:51.7]} 17. Nxc5 {[%clk 0:02:09.3]} 17... Bxc5 {[%clk 0:01:46.2]} 18. c3
{[%clk 0:01:55.3]} 18... Qf6 {[%clk 0:01:38.1]} 19. Qf3 {[%clk 0:01:53.8]} 19...
Rfd8 {[%clk 0:01:30.8]} 20. Rad1 {[%clk 0:01:49.7]} 20... h6 {[%clk 0:01:24.3]}
21. Qxf6 {[%clk 0:01:25.7]} 21... Nxf6 {[%clk 0:01:25.2]} 22. Bf4 {[%clk
0:01:12.6]} 22... Kf8 {[%clk 0:01:16.4]} 23. g4 {[%clk 0:01:09]} 23... Ke7
{[%clk 0:01:02.7]} 24. Bf3 {[%clk 0:01:08.3]} 24... Rxd1 {[%clk 0:00:54.9]} 25.
Rxd1 {[%clk 0:01:07]} 25... Rd8 {[%clk 0:00:55.1]} 26. Rxd8 {[%clk 0:00:49.9]}
26... Kxd8 {[%clk 0:00:56]} 27. Kf1 {[%clk 0:00:49.4]} 27... Nd5 {[%clk
0:00:48.5]} 28. Bd2 {[%clk 0:00:25.9]} 28... Bd6 {[%clk 0:00:36.4]} 29. Bxd5
{[%clk 0:00:23.5]} 29... exd5 {[%clk 0:00:36.4]} 30. Ke2 {[%clk 0:00:24.4]}
30... Kd7 {[%clk 0:00:34.6]} 31. Kd3 {[%clk 0:00:24.3]} 31... Kc6 {[%clk
0:00:22.4]} 32. b4 {[%clk 0:00:23.3]} 32... axb4 {[%clk 0:00:14.7]} 33. cxb4
{[%clk 0:00:24.2]} 33... Be7 {[%clk 0:00:12.1]} 34. Bc3 {[%clk 0:00:21.3]} 34...
g6 {[%clk 0:00:11.6]} 35. f4 {[%clk 0:00:20.4]} 35... Bd6 {[%clk 0:00:10.4]} 36.
f5 {[%clk 0:00:20]} 36... h5 {[%clk 0:00:10.1]} 37. fxg6 {[%clk 0:00:16.1]}
37... fxg6 {[%clk 0:00:11]} 38. gxh5 {[%clk 0:00:16.2]} 38... gxh5 {[%clk
0:00:11.9]} 39. b5+ {[%clk 0:00:14.3]} 39... Kd7 {[%clk 0:00:11.6]} 40. Bd4
{[%clk 0:00:11.1]} 40... Bc7 {[%clk 0:00:11.5]} 41. Ke3 {[%clk 0:00:10.3]} 41...
Ke6 {[%clk 0:00:11.9]} 42. Kf3 {[%clk 0:00:09]} 42... Kf5 {[%clk 0:00:12]} 43.
Ke3 {[%clk 0:00:08.3]} 43... Ke6 {[%clk 0:00:11]} 44. Kf3 {[%clk 0:00:05.9]}
44... Kf5 {[%clk 0:00:11.4]} 45. a5 {[%clk 0:00:06.1]} 45... bxa5 {[%clk
0:00:11.3]} 46. b6 {[%clk 0:00:07]} 46... Bb8 {[%clk 0:00:11.8]} 47. b7 {[%clk
0:00:06.4]} 47... a4 {[%clk 0:00:11.5]} 48. Bc5 {[%clk 0:00:06.7]} 48... h4
{[%clk 0:00:10.5]} 49. Ke3 {[%clk 0:00:06.6]} 49... Ke5 {[%clk 0:00:08.5]} 50.
Kd3 {[%clk 0:00:06.9]} 50... Kf4 {[%clk 0:00:07.7]} 51. Kd4 {[%clk 0:00:06.8]}
51... Kg3 {[%clk 0:00:07.2]} 52. Kxd5 {[%clk 0:00:06.5]} 52... Kxh3 {[%clk
0:00:07.6]} 53. Bd6 {[%clk 0:00:06.8]} 53... Ba7 {[%clk 0:00:06.7]} 54. Bc5
{[%clk 0:00:06.5]} 54... Bb8 {[%clk 0:00:07]} 55. Bd6 {[%clk 0:00:07]} 55... Ba7
{[%clk 0:00:07.4]} 56. Kc6 {[%clk 0:00:07.9]} 56... Kg2 {[%clk 0:00:06.9]} 57.
Bc5 {[%clk 0:00:07.4]} 57... Bb8 {[%clk 0:00:07.3]} 58. Bb6 {[%clk 0:00:07.4]}
58... a3 {[%clk 0:00:07.2]} 59. Bc7 {[%clk 0:00:07.3]} 59... Ba7 {[%clk
0:00:07.6]} 60. Bb6 {[%clk 0:00:07.3]} 60... Bb8 {[%clk 0:00:07.9]} 61. Bc7
{[%clk 0:00:06.2]} 61... Ba7 {[%clk 0:00:08.2]} 62. Bb6 {[%clk 0:00:06.4]} 62...
Bb8 {[%clk 0:00:07.7]} 1/2-1/2

[Event "*** Titled Tuesday Blitz"]
[Site "Chess.com"]
[Date "2020.05.12"]
[Round "3"]
[White "Usurpov"]
[Black "dosto07"]
[Result "1/2-1/2"]
[WhiteElo "2441"]
[BlackElo "2261"]
[TimeControl "180+1"]
[EndTime "10:29:27 PDT"]
[Termination "Game drawn - insufficient material"]

1. e4 {[%clk 0:03:00.9]} 1... e5 {[%clk 0:02:59.1]} 2. Nf3 {[%clk 0:03:00.5]}
2... Nc6 {[%clk 0:02:58.9]} 3. Nc3 {[%clk 0:02:59.8]} 3... Nf6 {[%clk
0:02:58.1]} 4. d4 {[%clk 0:03:00]} 4... exd4 {[%clk 0:02:57.6]} 5. Nxd4 {[%clk
0:03:00.9]} 5... Bb4 {[%clk 0:02:56.1]} 6. Nxc6 {[%clk 0:03:00.9]} 6... bxc6
{[%clk 0:02:56.1]} 7. Bd3 {[%clk 0:03:01.5]} 7... d5 {[%clk 0:02:55.9]} 8. exd5
{[%clk 0:03:02.4]} 8... cxd5 {[%clk 0:02:56]} 9. O-O {[%clk 0:03:02.8]} 9... O-O
{[%clk 0:02:55.9]} 10. Qf3 {[%clk 0:03:01]} 10... c6 {[%clk 0:02:55.2]} 11. h3
{[%clk 0:03:00.6]} 11... h6 {[%clk 0:02:53.6]} 12. Bf4 {[%clk 0:02:59.5]} 12...
Bd6 {[%clk 0:02:53.5]} 13. Rfe1 {[%clk 0:02:52.7]} 13... Rb8 {[%clk 0:02:53]}
14. b3 {[%clk 0:02:52.9]} 14... Be6 {[%clk 0:02:47]} 15. Rad1 {[%clk 0:02:47.5]}
15... Re8 {[%clk 0:02:38.5]} 16. Na4 {[%clk 0:02:43.3]} 16... Rb4 {[%clk
0:02:17.5]} 17. Bxd6 {[%clk 0:02:41.6]} 17... Qxd6 {[%clk 0:02:17.1]} 18. c4
{[%clk 0:02:22.4]} 18... Rbb8 {[%clk 0:02:05.5]} 19. cxd5 {[%clk 0:02:10.9]}
19... Bxd5 {[%clk 0:01:59.7]} 20. Qg3 {[%clk 0:02:03.3]} 20... Qxg3 {[%clk
0:01:58.1]} 21. fxg3 {[%clk 0:02:04.2]} 21... g5 {[%clk 0:01:42.6]} 22. Kf2
{[%clk 0:01:55.8]} 22... Kg7 {[%clk 0:01:42.4]} 23. Nc5 {[%clk 0:01:44]} 23...
Rbd8 {[%clk 0:01:36.8]} 24. Rxe8 {[%clk 0:01:38.8]} 24... Rxe8 {[%clk
0:01:35.7]} 25. Rc1 {[%clk 0:01:32.4]} 25... Kf8 {[%clk 0:01:30.8]} 26. b4
{[%clk 0:01:19.3]} 26... Ke7 {[%clk 0:01:29.7]} 27. a3 {[%clk 0:00:55.5]} 27...
Kd6 {[%clk 0:01:28.8]} 28. g4 {[%clk 0:00:51.8]} 28... Re7 {[%clk 0:01:14]} 29.
Rd1 {[%clk 0:00:36.1]} 29... Kc7 {[%clk 0:01:07]} 30. g3 {[%clk 0:00:29.4]}
30... h5 {[%clk 0:01:01.5]} 31. gxh5 {[%clk 0:00:28.8]} 31... Nxh5 {[%clk
0:01:01.1]} 32. Bf5 {[%clk 0:00:22.1]} 32... Nf6 {[%clk 0:00:50.6]} 33. Re1
{[%clk 0:00:16.5]} 33... Kd6 {[%clk 0:00:36.6]} 34. Rxe7 {[%clk 0:00:15.6]}
34... Kxe7 {[%clk 0:00:36.6]} 35. Ke3 {[%clk 0:00:15.1]} 35... Ne8 {[%clk
0:00:32.9]} 36. h4 {[%clk 0:00:14.6]} 36... gxh4 {[%clk 0:00:32]} 37. gxh4
{[%clk 0:00:15.5]} 37... Kf6 {[%clk 0:00:32.2]} 38. Be4 {[%clk 0:00:15.3]} 38...
Nd6 {[%clk 0:00:31.4]} 39. Bxd5 {[%clk 0:00:14.9]} 39... cxd5 {[%clk 0:00:30.9]}
40. h5 {[%clk 0:00:14.7]} 40... Nf5+ {[%clk 0:00:25.9]} 41. Kf4 {[%clk
0:00:13.2]} 41... d4 {[%clk 0:00:18.9]} 42. Ne4+ {[%clk 0:00:12.6]} 42... Ke6
{[%clk 0:00:17.5]} 43. Ng5+ {[%clk 0:00:11.1]} 43... Kf6 {[%clk 0:00:17.4]} 44.
Nh7+ {[%clk 0:00:06.5]} 44... Kg7 {[%clk 0:00:16.1]} 45. Kxf5 {[%clk 0:00:04.6]}
45... Kxh7 {[%clk 0:00:16]} 46. Ke4 {[%clk 0:00:04.9]} 46... Kh6 {[%clk
0:00:16.1]} 47. b5 {[%clk 0:00:05.2]} 47... Kxh5 {[%clk 0:00:15.3]} 48. a4
{[%clk 0:00:04.8]} 48... Kg4 {[%clk 0:00:13.7]} 49. a5 {[%clk 0:00:04]} 49...
f5+ {[%clk 0:00:13.6]} 50. Kxd4 {[%clk 0:00:04]} 50... f4 {[%clk 0:00:14.5]} 51.
b6 {[%clk 0:00:03.9]} 51... axb6 {[%clk 0:00:14.4]} 52. a6 {[%clk 0:00:02]}
52... f3 {[%clk 0:00:15.3]} 53. a7 {[%clk 0:00:01.9]} 53... f2 {[%clk
0:00:14.5]} 54. a8=Q {[%clk 0:00:02.3]} 54... f1=Q {[%clk 0:00:12.9]} 55. Qg8+
{[%clk 0:00:02.6]} 55... Kh3 {[%clk 0:00:12.2]} 56. Qh7+ {[%clk 0:00:02.6]}
56... Kg2 {[%clk 0:00:12.2]} 57. Qg6+ {[%clk 0:00:02.7]} 57... Kh1 {[%clk
0:00:12.2]} 58. Qh5+ {[%clk 0:00:02.8]} 58... Kg1 {[%clk 0:00:12.2]} 59. Qg4+
{[%clk 0:00:02.7]} 59... Kh1 {[%clk 0:00:12.1]} 60. Qh4+ {[%clk 0:00:02.5]}
60... Kg1 {[%clk 0:00:12]} 61. Qg3+ {[%clk 0:00:02.7]} 61... Qg2 {[%clk
0:00:10.2]} 62. Qxg2+ {[%clk 0:00:02.7]} 62... Kxg2 {[%clk 0:00:10.3]} 63. Kc4
{[%clk 0:00:03.6]} 63... Kf3 {[%clk 0:00:09.9]} 64. Kb5 {[%clk 0:00:04.5]} 64...
Ke4 {[%clk 0:00:09.7]} 65. Kxb6 {[%clk 0:00:05.4]} 1/2-1/2

[Event "*** Titled Tuesday Blitz"]
[Site "Chess.com"]
[Date "2020.05.12"]
[Round "3"]
[White "Jumbo"]
[Black "Korona_91"]
[Result "0-1"]
[WhiteElo "2820"]
[BlackElo "2459"]
[TimeControl "180+1"]
[EndTime "10:29:28 PDT"]
[Termination "Korona_91 won by resignation"]

1. d4 {[%clk 0:03:00.9]} 1... e6 {[%clk 0:02:57.2]} 2. Bf4 {[%clk 0:03:00.7]}
2... f5 {[%clk 0:02:56.6]} 3. c4 {[%clk 0:02:56.1]} 3... Nf6 {[%clk 0:02:56.3]}
4. Nc3 {[%clk 0:02:56.5]} 4... Bb4 {[%clk 0:02:56.6]} 5. e3 {[%clk 0:02:55.1]}
5... O-O {[%clk 0:02:50.5]} 6. h3 {[%clk 0:02:55.2]} 6... b6 {[%clk 0:02:47.9]}
7. Bd3 {[%clk 0:02:52.8]} 7... Bb7 {[%clk 0:02:47.6]} 8. Nf3 {[%clk 0:02:53.3]}
8... Ne4 {[%clk 0:02:39]} 9. Qc2 {[%clk 0:02:51.6]} 9... d6 {[%clk 0:02:36.6]}
10. Rg1 {[%clk 0:02:40.4]} 10... Nd7 {[%clk 0:02:31.4]} 11. O-O-O {[%clk
0:02:40.1]} 11... Bxc3 {[%clk 0:02:29]} 12. bxc3 {[%clk 0:02:39.8]} 12... Qe7
{[%clk 0:02:23.3]} 13. Bh2 {[%clk 0:02:26.6]} 13... a6 {[%clk 0:02:06.7]} 14. d5
{[%clk 0:01:59.4]} 14... Ndc5 {[%clk 0:02:00.3]} 15. Nd4 {[%clk 0:01:58.6]}
15... Nxd3+ {[%clk 0:01:53.4]} 16. Qxd3 {[%clk 0:01:57.2]} 16... Nxf2 {[%clk
0:01:41.7]} 17. Qd2 {[%clk 0:01:46.9]} 17... Nxd1 {[%clk 0:01:41.2]} 18. Nxe6
{[%clk 0:01:46.6]} 18... Nxe3 {[%clk 0:01:28.2]} 19. Qxe3 {[%clk 0:01:41.1]}
19... Rf6 {[%clk 0:01:26]} 20. Bg3 {[%clk 0:01:14.9]} 20... Rg6 {[%clk 0:01:17]}
21. Re1 {[%clk 0:01:06.2]} 21... Re8 {[%clk 0:01:11.6]} 22. Qd3 {[%clk
0:01:03.3]} 22... Qf7 {[%clk 0:01:03]} 23. Nf4 {[%clk 0:00:59.6]} 23... Rxe1+
{[%clk 0:01:01.3]} 24. Bxe1 {[%clk 0:01:00.5]} 24... Rh6 {[%clk 0:00:59.5]} 25.
h4 {[%clk 0:00:58.5]} 25... Bc8 {[%clk 0:00:54.9]} 26. Qe3 {[%clk 0:00:56.6]}
26... Kf8 {[%clk 0:00:50.2]} 27. Qg3 {[%clk 0:00:47.3]} 27... Qe7 {[%clk
0:00:48]} 28. Bf2 {[%clk 0:00:47.5]} 28... Rf6 {[%clk 0:00:41.3]} 29. Bd4 {[%clk
0:00:45]} 29... Rf7 {[%clk 0:00:39.3]} 30. h5 {[%clk 0:00:45.3]} 30... Qe4
{[%clk 0:00:35.6]} 31. Kb2 {[%clk 0:00:43.4]} 31... b5 {[%clk 0:00:34]} 32. c5
{[%clk 0:00:32.6]} 32... b4 {[%clk 0:00:32.9]} 33. Qg5 {[%clk 0:00:24.7]} 33...
bxc3+ {[%clk 0:00:32.4]} 34. Kxc3 {[%clk 0:00:24.1]} 34... Qe1+ {[%clk 0:00:31]}
35. Kc2 {[%clk 0:00:19.7]} 35... Qe4+ {[%clk 0:00:30.6]} 36. Kc3 {[%clk
0:00:20.2]} 36... Qe7 {[%clk 0:00:28.4]} 37. Qg3 {[%clk 0:00:15.9]} 37... dxc5
{[%clk 0:00:28.3]} 38. Bf2 {[%clk 0:00:14.7]} 38... Qf6+ {[%clk 0:00:26.3]} 39.
Kb3 {[%clk 0:00:14.4]} 39... Qb6+ {[%clk 0:00:25]} 40. Kc2 {[%clk 0:00:14.9]}
40... Qb4 {[%clk 0:00:23.8]} 41. a3 {[%clk 0:00:13]} 41... Qc4+ {[%clk
0:00:22.6]} 42. Kd2 {[%clk 0:00:12.1]} 42... Bd7 {[%clk 0:00:21.7]} 43. Nd3
{[%clk 0:00:08.8]} 43... Bb5 {[%clk 0:00:19.9]} 44. Bxc5+ {[%clk 0:00:08.3]}
44... Kg8 {[%clk 0:00:19]} 45. Qe3 {[%clk 0:00:05.3]} 45... Qxd5 {[%clk
0:00:15.4]} 46. Bd4 {[%clk 0:00:05.1]} 46... Bxd3 {[%clk 0:00:14.7]} 47. Qe8+
{[%clk 0:00:02.8]} 47... Rf8 {[%clk 0:00:13.7]} 48. Qe3 {[%clk 0:00:02.3]} 48...
Be4 {[%clk 0:00:13.4]} 0-1

[Event "*** Titled Tuesday Blitz"]
[Site "Chess.com"]
[Date "2020.05.12"]
[Round "3"]
[White "Trankuilizer"]
[Black "nicolochessit"]
[Result "1-0"]
[WhiteElo "2553"]
[BlackElo "2344"]
[TimeControl "180+1"]
[EndTime "10:29:29 PDT"]
[Termination "Trankuilizer won by resignation"]

1. e4 {[%clk 0:03:00.9]} 1... e6 {[%clk 0:02:58.5]} 2. d4 {[%clk 0:02:59.9]}
2... d5 {[%clk 0:02:58.8]} 3. Nd2 {[%clk 0:03:00.2]} 3... Nc6 {[%clk 0:02:58.1]}
4. Ngf3 {[%clk 0:02:58.2]} 4... Nf6 {[%clk 0:02:56.4]} 5. e5 {[%clk 0:02:58.2]}
5... Nd7 {[%clk 0:02:56.9]} 6. c3 {[%clk 0:02:57.7]} 6... f6 {[%clk 0:02:55.5]}
7. Bb5 {[%clk 0:02:57.9]} 7... fxe5 {[%clk 0:02:38.7]} 8. dxe5 {[%clk
0:02:58.8]} 8... Be7 {[%clk 0:02:29.6]} 9. O-O {[%clk 0:02:47.3]} 9... O-O
{[%clk 0:02:27.7]} 10. Re1 {[%clk 0:02:47.4]} 10... Nc5 {[%clk 0:02:05.1]} 11.
Nd4 {[%clk 0:02:45.2]} 11... Bd7 {[%clk 0:01:54.4]} 12. Bxc6 {[%clk 0:02:23.6]}
12... bxc6 {[%clk 0:01:55.3]} 13. b4 {[%clk 0:02:23.5]} 13... Nd3 {[%clk
0:01:50.8]} 14. Re2 {[%clk 0:02:22.2]} 14... Nf4 {[%clk 0:01:47.5]} 15. N2b3
{[%clk 0:02:09.3]} 15... Nxe2+ {[%clk 0:01:44.7]} 16. Qxe2 {[%clk 0:02:10.2]}
16... a5 {[%clk 0:01:40.5]} 17. a3 {[%clk 0:02:03.9]} 17... axb4 {[%clk
0:01:39]} 18. cxb4 {[%clk 0:02:04.8]} 18... Qb8 {[%clk 0:01:24.4]} 19. h3 {[%clk
0:01:53.7]} 19... Qa7 {[%clk 0:01:22.7]} 20. Qg4 {[%clk 0:01:42]} 20... Rf7
{[%clk 0:01:04.6]} 21. Bg5 {[%clk 0:01:39.7]} 21... Bf8 {[%clk 0:01:01.9]} 22.
Be3 {[%clk 0:01:20.3]} 22... Qa6 {[%clk 0:00:48.2]} 23. Qd1 {[%clk 0:01:16.6]}
23... Qa4 {[%clk 0:00:32.8]} 24. Qc1 {[%clk 0:01:14.9]} 24... Rb8 {[%clk
0:00:28.5]} 25. Nc5 {[%clk 0:01:13.1]} 25... Bxc5 {[%clk 0:00:22.7]} 26. Qxc5
{[%clk 0:01:14]} 26... Qa8 {[%clk 0:00:20.3]} 27. a4 {[%clk 0:01:13]} 27... Qb7
{[%clk 0:00:20.2]} 28. Nc2 {[%clk 0:01:09.7]} 28... Qb6 {[%clk 0:00:19.4]} 29.
Qc3 {[%clk 0:01:09.1]} 29... Qb7 {[%clk 0:00:19.4]} 30. Bc5 {[%clk 0:01:06.2]}
30... Rf5 {[%clk 0:00:18.3]} 31. Qe3 {[%clk 0:01:04.5]} 31... Rbf8 {[%clk
0:00:16.8]} 32. Bxf8 {[%clk 0:01:02.2]} 32... Rxf8 {[%clk 0:00:17.7]} 33. a5
{[%clk 0:01:01.2]} 33... Rb8 {[%clk 0:00:17.8]} 34. a6 {[%clk 0:01:00.5]} 34...
Qb6 {[%clk 0:00:16.8]} 35. a7 {[%clk 0:00:53]} 35... Ra8 {[%clk 0:00:17]} 36.
Qc5 {[%clk 0:00:53.2]} 36... Qxc5 {[%clk 0:00:13.7]} 37. bxc5 {[%clk 0:00:53.1]}
37... Kf7 {[%clk 0:00:13.7]} 38. Nd4 {[%clk 0:00:52.7]} 38... Ke7 {[%clk
0:00:13.8]} 39. f4 {[%clk 0:00:51.5]} 39... Kd8 {[%clk 0:00:14]} 40. g4 {[%clk
0:00:50.7]} 40... g6 {[%clk 0:00:14.4]} 41. Kf2 {[%clk 0:00:50.4]} 41... Kc8
{[%clk 0:00:14.7]} 42. Kg3 {[%clk 0:00:49.1]} 42... Kb7 {[%clk 0:00:15.1]} 43.
Kh4 {[%clk 0:00:48.7]} 43... Rxa7 {[%clk 0:00:15.2]} 44. Rxa7+ {[%clk
0:00:47.5]} 44... Kxa7 {[%clk 0:00:16.1]} 45. Kg5 {[%clk 0:00:47.9]} 45... Ka6
{[%clk 0:00:16.1]} 46. Kh6 {[%clk 0:00:46.4]} 46... Ka5 {[%clk 0:00:17]} 47.
Kxh7 {[%clk 0:00:46.6]} 47... Kb4 {[%clk 0:00:17.7]} 48. Kxg6 {[%clk 0:00:43.4]}
48... Kxc5 {[%clk 0:00:17.9]} 49. Nf3 {[%clk 0:00:43.2]} 49... d4 {[%clk
0:00:17.7]} 50. h4 {[%clk 0:00:43]} 50... d3 {[%clk 0:00:17.6]} 51. h5 {[%clk
0:00:43.1]} 51... Kd5 {[%clk 0:00:14.6]} 52. h6 {[%clk 0:00:41]} 52... Ke4
{[%clk 0:00:14.5]} 53. Nd2+ {[%clk 0:00:41.2]} 53... Ke3 {[%clk 0:00:14.6]} 54.
Nb3 {[%clk 0:00:40.9]} 54... c5 {[%clk 0:00:13.6]} 55. h7 {[%clk 0:00:40.5]}
55... c4 {[%clk 0:00:13.7]} 56. h8=Q {[%clk 0:00:40.6]} 56... cxb3 {[%clk
0:00:13.8]} 57. Qh3+ {[%clk 0:00:40.5]} 57... Ke2 {[%clk 0:00:12.7]} 58. Qg2+
{[%clk 0:00:40.1]} 58... Ke3 {[%clk 0:00:12.9]} 59. Qb2 {[%clk 0:00:34.9]} 59...
Ba4 {[%clk 0:00:12.6]} 60. Qc3 {[%clk 0:00:31]} 60... Ke2 {[%clk 0:00:11.9]} 61.
f5 {[%clk 0:00:19.2]} 61... d2 {[%clk 0:00:11.5]} 62. Qc4+ {[%clk 0:00:19.4]}
62... Kf2 {[%clk 0:00:10]} 63. Qd4+ {[%clk 0:00:19.5]} 63... Ke1 {[%clk
0:00:10]} 64. Qe4+ {[%clk 0:00:18.8]} 64... Kd1 {[%clk 0:00:10.5]} 65. Qxa4
{[%clk 0:00:19]} 65... Kc2 {[%clk 0:00:09.5]} 66. Qc4+ {[%clk 0:00:19]} 66...
Kb2 {[%clk 0:00:08.8]} 67. Qd3 {[%clk 0:00:17.9]} 1-0